fUST/lending_fUST_20250518
["ID","MTS","AMOUNT","RATE_DAILY","PERIOD"]
[361404338,1747557047167,-450.0,0.00013972,2]
[361404339,1747557047176,-450.0,0.00013972,2]
[361404340,1747557047185,-256.11450631,0.00013972,2]
[361404341,1747557047194,-450.0,0.00013972,2]
[361404342,1747557047206,-450.0,0.00013972,2]
[361404343,1747557047215,-3876.09284987,0.00014,2]
[361404345,1747557047224,-160.0,0.00014094,2]
[361404347,1747557047233,-160.0,0.00014094,2]
[361404349,1747557047243,-160.0,0.00014094,2]
[361404351,1747557047252,-160.0,0.00014094,2]
[361404353,1747557047261,-160.0,0.00014094,2]
[361404355,1747557047270,-212.32903618,0.00014094,2]
[361404357,1747557047281,-12636.50182523,0.00014095,2]
[361404359,1747557047290,-309.33160456,0.00014109,2]
[361404361,1747557047299,-450.0,0.00014109,2]
[361404363,1747557047308,-450.0,0.00014109,2]
[361404365,1747557047318,-450.0,0.00014109,2]
[361404367,1747557047327,-450.0,0.00014109,2]
[361404368,1747557047336,-257.09,0.00014109,2]
[361404370,1747557047345,-556.75713331,0.00014109,2]
[361404372,1747557047353,-471.45,0.00014109,2]
[361404374,1747557047363,-450.0,0.00014109,2]
[361404376,1747557047373,-503.61,0.00014109,2]
[361404378,1747557047382,-450.0,0.00014109,2]
[361404380,1747557047391,-449.21,0.00014109,2]
[361404382,1747557047400,-450.0,0.00014109,2]
[361404384,1747557047409,-450.0,0.00014109,2]
[361404386,1747557047419,-450.0,0.00014109,2]
[361404388,1747557047429,-450.0,0.00014109,2]
[361404390,1747557047437,-450.0,0.00014109,2]
[361404392,1747557047448,-450.0,0.00014109,2]
[361404394,1747557047457,-450.0,0.00014109,2]
[361404396,1747557047466,-450.0,0.00014109,2]
[361404398,1747557047476,-519.68,0.00014109,2]
[361404400,1747557047487,-431.02,0.00014109,2]
[361404402,1747557047496,-450.0,0.00014109,2]
[361404404,1747557047505,-450.0,0.00014109,2]
[361404406,1747557047515,-342.65115849,0.00014109,2]
[361404408,1747557047524,-502.02,0.00014109,2]
[361404410,1747557047533,-450.0,0.00014109,2]
[361404412,1747557047543,-450.0,0.00014109,2]
[361404414,1747557047552,-450.0,0.00014109,2]
[361404416,1747557047561,-450.0,0.00014109,2]
[361404418,1747557047570,-563.78,0.00014109,2]
[361404420,1747557047579,-450.0,0.00014109,2]
[361404422,1747557047588,-450.0,0.00014109,2]
[361404424,1747557047598,-450.0,0.00014109,2]
[361404426,1747557047607,-450.0,0.00014109,2]
[361404428,1747557047617,-450.0,0.00014109,2]
[361404430,1747557047626,-450.0,0.00014109,2]
[361404432,1747557047635,-182.71,0.00014109,2]
[361404434,1747557047644,-450.0,0.00014109,2]
[361404436,1747557047654,-450.0,0.00014109,2]
[361404438,1747557047663,-378.15,0.00014109,2]
[361404440,1747557047672,-450.0,0.00014109,2]
[361404442,1747557047683,-455.84,0.00014109,2]
[361404444,1747557047692,-450.0,0.00014109,2]
[361404446,1747557047701,-465.86,0.00014109,2]
[361404448,1747557047711,-450.0,0.00014109,2]
[361404450,1747557047719,-450.0,0.00014109,2]
[361404452,1747557047729,-485.41,0.00014109,2]
[361404454,1747557047738,-450.0,0.00014109,2]
[361404456,1747557047748,-450.0,0.00014109,2]
[361404458,1747557047757,-450.0,0.00014109,2]
[361404460,1747557047767,-678.63,0.00014109,2]
[361404462,1747557047776,-366.46,0.00014109,2]
[361404464,1747557047786,-450.0,0.00014109,2]
[361404466,1747557047795,-450.0,0.00014109,2]
[361404468,1747557047804,-450.0,0.00014109,2]
[361404470,1747557047814,-310.25,0.00014109,2]
[361404472,1747557047823,-450.0,0.00014109,2]
[361404474,1747557047832,-450.0,0.00014109,2]
[361404476,1747557047841,-450.0,0.00014109,2]
[361404478,1747557047850,-450.0,0.00014109,2]
[361404480,1747557047860,-450.0,0.00014109,2]
[361404482,1747557047869,-450.0,0.00014109,2]
[361404484,1747557047880,-461.98,0.00014109,2]
[361404486,1747557047889,-450.0,0.00014109,2]
[361404488,1747557047899,-450.0,0.00014109,2]
[361404490,1747557047910,-450.0,0.00014109,2]
[361404491,1747557047920,-450.0,0.00014109,2]
[361404493,1747557047931,-450.0,0.00014109,2]
[361404496,1747557047942,-385.08,0.00014109,2]
[361404497,1747557047951,-450.0,0.00014109,2]
[361404499,1747557047961,-450.0,0.00014109,2]
[361404501,1747557047971,-450.0,0.00014109,2]
[361404503,1747557047981,-450.0,0.00014109,2]
[361404505,1747557047991,-450.0,0.00014109,2]
[361404507,1747557048000,-450.0,0.00014109,2]
[361404509,1747557048009,-204.09,0.00014109,2]
[361404511,1747557048018,-450.0,0.00014109,2]
[361404513,1747557048028,-450.0,0.00014109,2]
[361404515,1747557048037,-459.0761409,0.00014109,2]
[361404517,1747557048046,-450.0,0.00014109,2]
[361404519,1747557048055,-450.0,0.00014109,2]
[361404521,1747557048064,-599.16535092,0.00014109,2]
[361404523,1747557048074,-450.0,0.00014109,2]
[361404525,1747557048083,-450.0,0.00014109,2]
[361404527,1747557048092,-259.5,0.00014109,2]
[361404529,1747557048102,-450.0,0.00014109,2]
[361404531,1747557048112,-450.0,0.00014109,2]
[361404533,1747557048122,-450.0,0.00014109,2]
[361404535,1747557048132,-450.0,0.00014109,2]
[361404537,1747557048142,-450.0,0.00014109,2]
[361404539,1747557048152,-450.0,0.00014109,2]
[361404541,1747557048162,-468.69128461,0.00014109,2]
[361404543,1747557048171,-164.62,0.00014109,2]
[361404545,1747557048182,-450.0,0.00014109,2]
[361404547,1747557048192,-450.0,0.00014109,2]
[361404549,1747557048204,-212.94401233,0.00014119,2]
[361404551,1747557048214,-321.0,0.00014149,2]
[361404553,1747557048223,-321.0,0.00014149,2]
[361404555,1747557048232,-321.0,0.00014149,2]
[361404557,1747557048242,-1000.0,0.00014221,2]
[361404559,1747557048254,-207.4,0.00014224,2]
[361404561,1747557048263,-291.46,0.00014246,2]
[361404563,1747557048272,-450.0,0.00014246,2]
[361404565,1747557048283,-153.25082279,0.00014246,2]
[361404567,1747557048293,-450.0,0.00014246,2]
[361404579,1747557048398,-571.8,0.00014246,2]
[361404581,1747557048408,-450.0,0.00014246,2]
[361404583,1747557048417,-374.03,0.00014246,2]
[361404585,1747557048428,-450.0,0.00014246,2]
[361404587,1747557048439,-450.0,0.00014246,2]
[361404589,1747557048449,-450.0,0.00014246,2]
[361404591,1747557048458,-405.59722025,0.00014246,2]
[361404593,1747557048468,-563.78,0.00014246,2]
[361404595,1747557048476,-450.0,0.00014246,2]
[361404597,1747557048486,-450.0,0.00014246,2]
[361404599,1747557048497,-450.0,0.00014246,2]
[361404601,1747557048507,-450.0,0.00014246,2]
[361404603,1747557048516,-450.0,0.00014246,2]
[361404604,1747557048526,-450.0,0.00014246,2]
[361404606,1747557048535,-450.0,0.00014246,2]
[361404608,1747557048545,-450.0,0.00014246,2]
[361404610,1747557048554,-450.0,0.00014246,2]
[361404611,1747557048564,-465.86,0.00014246,2]
[361404613,1747557048574,-239.93,0.00014246,2]
[361404615,1747557048584,-450.0,0.00014246,2]
[361404617,1747557048594,-450.0,0.00014246,2]
[361404619,1747557048603,-450.0,0.00014246,2]
[361404621,1747557048613,-678.63,0.00014246,2]
[361404623,1747557048622,-450.0,0.00014246,2]
[361404624,1747557048632,-450.0,0.00014246,2]
[361404626,1747557048641,-450.0,0.00014246,2]
[361404628,1747557048650,-450.0,0.00014246,2]
[361404630,1747557048659,-450.0,0.00014246,2]
[361404631,1747557048667,-414.8,0.00014246,2]
[361404633,1747557048677,-389.94,0.00014246,2]
[361404635,1747557048691,-450.0,0.00014246,2]
[361404637,1747557048700,-450.0,0.00014246,2]
[361404639,1747557048709,-450.0,0.00014246,2]
[361404640,1747557048718,-363.09,0.00014246,2]
[361404642,1747557048728,-450.0,0.00014246,2]
[361404644,1747557048738,-450.0,0.00014246,2]
[361404646,1747557048748,-403.87,0.00014246,2]
[361404648,1747557048757,-288.6,0.00014246,2]
[361404650,1747557048767,-450.0,0.00014246,2]
[361404652,1747557048776,-294.51,0.00014246,2]
[361404653,1747557048785,-451.75,0.00014246,2]
[361404655,1747557048794,-450.0,0.00014246,2]
[361404657,1747557048804,-450.0,0.00014246,2]
[361404659,1747557048814,-450.0,0.00014246,2]
[361404661,1747557048823,-450.0,0.00014246,2]
[361404662,1747557048832,-526.74,0.00014246,2]
[361404664,1747557048842,-450.0,0.00014246,2]
[361404666,1747557048852,-450.0,0.00014246,2]
[361404668,1747557048861,-450.0,0.00014246,2]
[361404670,1747557048871,-360.76,0.00014246,2]
[361404672,1747557048880,-450.0,0.00014246,2]
[361404673,1747557048889,-159.3,0.00014246,2]
[361404675,1747557048899,-394.53,0.00014246,2]
[361404677,1747557048908,-642.18908998,0.00014279,2]
[361404679,1747557048917,-450.0,0.00014383,2]
[361404680,1747557048930,-450.0,0.00014383,2]
[361404682,1747557048940,-450.0,0.00014383,2]
[361404684,1747557048949,-450.0,0.00014383,2]
[361404686,1747557048959,-450.0,0.00014383,2]
[361404688,1747557048968,-563.78,0.00014383,2]
[361404690,1747557048980,-353.33,0.00014383,2]
[361404691,1747557048990,-450.0,0.00014383,2]
[361404693,1747557049000,-450.0,0.00014383,2]
[361404695,1747557049009,-450.0,0.00014383,2]
[361404697,1747557049019,-450.0,0.00014383,2]
[361404698,1747557049028,-450.0,0.00014383,2]
[361404700,1747557049038,-584.71,0.00014383,2]
[361404702,1747557049047,-450.0,0.00014383,2]
[361404704,1747557049056,-450.0,0.00014383,2]
[361404706,1747557049065,-465.86,0.00014383,2]
[361404707,1747557049075,-450.0,0.00014383,2]
[361404709,1747557049084,-450.0,0.00014383,2]
[361404711,1747557049093,-450.0,0.00014383,2]
[361404713,1747557049103,-678.63,0.00014383,2]
[361404715,1747557049112,-450.0,0.00014383,2]
[361404717,1747557049121,-450.0,0.00014383,2]
[361404719,1747557049130,-287.02,0.00014383,2]
[361404720,1747557049139,-450.0,0.00014383,2]
[361404722,1747557049149,-450.0,0.00014383,2]
[361404724,1747557049158,-450.0,0.00014383,2]
[361404726,1747557049167,-241.09,0.00014383,2]
[361404728,1747557049180,-301.32,0.00014383,2]
[361404730,1747557049189,-450.0,0.00014383,2]
[361404731,1747557049199,-450.0,0.00014383,2]
[361404733,1747557049211,-450.0,0.00014383,2]
[361404735,1747557049221,-450.0,0.00014383,2]
[361404737,1747557049230,-450.0,0.00014383,2]
[361404739,1747557049240,-450.0,0.00014383,2]
[361404741,1747557049250,-493.89,0.00014383,2]
[361404743,1747557049260,-570.64,0.00014383,2]
[361404745,1747557049269,-450.0,0.00014383,2]
[361404747,1747557049279,-450.0,0.00014383,2]
[361404748,1747557049289,-5000.0,0.00014499,2]
[361404750,1747557049298,-294.0,0.000145,2]
[361404752,1747557049307,-450.0,0.0001452,2]
[361404754,1747557049316,-450.0,0.0001452,2]
[361404756,1747557049325,-450.0,0.0001452,2]
[361404758,1747557049334,-246.23,0.0001452,2]
[361404759,1747557049344,-563.78,0.0001452,2]
[361404761,1747557049353,-450.0,0.0001452,2]
[361404763,1747557049362,-450.0,0.0001452,2]
[361404765,1747557049371,-450.0,0.0001452,2]
[361404767,1747557049380,-450.0,0.0001452,2]
[361404769,1747557049389,-390.92,0.0001452,2]
[361404770,1747557049398,-450.0,0.0001452,2]
[361404772,1747557049409,-450.0,0.0001452,2]
[361404774,1747557049418,-465.86,0.0001452,2]
[361404776,1747557049429,-450.0,0.0001452,2]
[361404778,1747557049438,-375.49302516,0.0001452,2]
[361404780,1747557049447,-450.0,0.0001452,2]
[361404782,1747557049456,-678.63,0.0001452,2]
[361404783,1747557049465,-217.68,0.0001452,2]
[361404785,1747557049474,-450.0,0.0001452,2]
[361404787,1747557049483,-450.0,0.0001452,2]
[361404789,1747557049491,-450.0,0.0001452,2]
[361404791,1747557049501,-174.9,0.0001452,2]
[361404793,1747557049511,-176.35,0.0001452,2]
[361404795,1747557049521,-450.0,0.0001452,2]
[361404796,1747557049530,-450.0,0.0001452,2]
[361404798,1747557049539,-450.0,0.0001452,2]
[361404800,1747557049549,-450.0,0.0001452,2]
[361404802,1747557049558,-171.37,0.0001452,2]
[361404804,1747557049567,-450.0,0.0001452,2]
[361404806,1747557049576,-450.0,0.0001452,2]
[361404807,1747557049585,-450.0,0.00014657,2]
[361404809,1747557049595,-450.0,0.00014657,2]
[361404811,1747557049603,-450.0,0.00014657,2]
[361404813,1747557049612,-563.78,0.00014657,2]
[361404815,1747557049621,-450.0,0.00014657,2]
[361404817,1747557049631,-526.66,0.00014657,2]
[361404818,1747557049639,-298.96,0.00014657,2]
[361404820,1747557049649,-450.0,0.00014657,2]
[361404822,1747557049658,-450.0,0.00014657,2]
[361404824,1747557049668,-450.0,0.00014657,2]
[361404826,1747557049679,-465.86,0.00014657,2]
[361404828,1747557049688,-450.0,0.00014657,2]
[361404830,1747557049698,-450.0,0.00014657,2]
[361404832,1747557049707,-678.63,0.00014657,2]
[361404834,1747557049715,-450.0,0.00014657,2]
[361404835,1747557049724,-450.0,0.00014657,2]
[361404837,1747557049733,-450.0,0.00014657,2]
[361404839,1747557049743,-450.0,0.00014657,2]
[361404841,1747557049753,-450.0,0.00014657,2]
[361404843,1747557049763,-450.0,0.00014657,2]
[361404845,1747557049772,-450.0,0.00014657,2]
[361404847,1747557049782,-450.0,0.00014657,2]
[361404849,1747557049791,-450.0,0.00014657,2]
[361404850,1747557049801,-642.18908998,0.00014659,2]
[361404851,1747557049810,-450.0,0.00014794,2]
[361404853,1747557049819,-310.34688262,0.00014794,2]
[361404855,1747557049828,-450.0,0.00014794,2]
[361404857,1747557049837,-563.78,0.00014794,2]
[361404859,1747557049846,-594.05,0.00014794,2]
[361404861,1747557049856,-450.0,0.00014794,2]
[361404863,1747557049865,-450.0,0.00014794,2]
[361404864,1747557049874,-450.0,0.00014794,2]
[361404866,1747557049884,-465.86,0.00014794,2]
[361404868,1747557049893,-450.0,0.00014794,2]
[361404870,1747557049902,-450.0,0.00014794,2]
[361404872,1747557049912,-678.63,0.00014794,2]
[361404874,1747557049921,-450.0,0.00014794,2]
[361404876,1747557049933,-450.0,0.00014794,2]
[361404877,1747557049942,-450.0,0.00014794,2]
[361404879,1747557049951,-450.0,0.00014794,2]
[361404881,1747557049960,-450.0,0.00014794,2]
[361404883,1747557049971,-450.0,0.00014794,2]
[361404885,1747557049981,-450.0,0.00014794,2]
[361404887,1747557049990,-450.0,0.00014794,2]
[361404889,1747557050000,-450.0,0.00014794,2]
[361404890,1747557050010,-587.0,0.00014901,2]
[361404892,1747557050019,-450.0,0.00014931,2]
[361404894,1747557050029,-450.0,0.00014931,2]
[361404896,1747557050038,-563.78,0.00014931,2]
[361404897,1747557050047,-528.85,0.00014931,2]
[361404898,1747557050056,-450.0,0.00014931,2]
[361404899,1747557050066,-298.08412928,0.00014931,2]
[361404900,1747557050075,-465.86,0.00014931,2]
[361404901,1747557050084,-450.0,0.00014931,2]
[361404902,1747557050093,-450.0,0.00014931,2]
[361404903,1747557050102,-678.63,0.00014931,2]
[361404904,1747557050111,-450.0,0.00014931,2]
[361404905,1747557050120,-450.0,0.00014931,2]
[361404906,1747557050129,-450.0,0.00014931,2]
[361404907,1747557050139,-450.0,0.00014931,2]
[361404908,1747557050240,-450.0,0.00014931,2]
[361404909,1747557050251,-450.0,0.00014931,2]
[361404910,1747557050260,-163.75,0.00014931,2]
[361404911,1747557050270,-450.0,0.00014931,2]
[361404912,1747557050279,-450.0,0.00014931,2]
[361404913,1747557050289,-720.0,0.00014971,2]
[361404914,1747557050299,-642.18908998,0.00015038,2]
[361404915,1747557050309,-5000.0,0.00015047,2]
[361404916,1747557050319,-450.0,0.00015068,2]
[361404917,1747557050328,-233.70424968,0.00015068,2]
[361404918,1747557050338,-563.78,0.00015068,2]
[361404919,1747557050347,-450.0,0.00015068,2]
[361404920,1747557050357,-465.86,0.00015068,2]
[361404921,1747557050366,-450.0,0.00015068,2]
[361404922,1747557050376,-450.0,0.00015068,2]
[361404923,1747557050386,-678.63,0.00015068,2]
[361404924,1747557050395,-402.3,0.00015068,2]
[361404925,1747557050404,-450.0,0.00015068,2]
[361404926,1747557050413,-450.0,0.00015068,2]
[361404927,1747557050422,-450.0,0.00015068,2]
[361404928,1747557050434,-455.13,0.00015068,2]
[361404929,1747557050444,-450.0,0.00015068,2]
[361404930,1747557050453,-450.0,0.00015068,2]
[361404931,1747557050463,-301.59,0.00015068,2]
[361404932,1747557050471,-450.0,0.00015205,2]
[361404933,1747557050480,-563.78,0.00015205,2]
[361404934,1747557050490,-545.55,0.00015205,2]
[361404935,1747557050500,-465.86,0.00015205,2]
[361404936,1747557050509,-450.0,0.00015205,2]
[361404937,1747557050519,-450.0,0.00015205,2]
[361404938,1747557050528,-678.63,0.00015205,2]
[361404939,1747557050538,-450.0,0.00015205,2]
[361404940,1747557050547,-397.06,0.00015205,2]
[361404941,1747557050557,-450.0,0.00015205,2]
[361404942,1747557050566,-450.0,0.00015205,2]
[361404943,1747557050575,-450.0,0.00015205,2]
[361404944,1747557050585,-422.53311782,0.00015234,2]
[361404945,1747557050594,-998.24360331,0.00015234,2]
[361404946,1747557050603,-450.0,0.00015342,2]
[361404947,1747557050612,-563.78,0.00015342,2]
[361404948,1747557050621,-465.86,0.00015342,2]
[361404949,1747557050631,-450.0,0.00015342,2]
[361404950,1747557050640,-450.0,0.00015342,2]
[361404951,1747557050650,-678.63,0.00015342,2]
[361404952,1747557050659,-469.89,0.00015342,2]
[361404953,1747557050669,-344.59,0.00015342,2]
[361404954,1747557050678,-450.0,0.00015342,2]
[361404955,1747557050687,-450.0,0.00015342,2]
[361404956,1747557050696,-642.18908998,0.00015417,2]
[361404957,1747557050705,-176.466673,0.00015463,3]
[361404958,1747557050714,-450.0,0.00015479,2]
[361404959,1747557050723,-563.78,0.00015479,2]
[361404960,1747557050732,-465.86,0.00015479,2]
[361404961,1747557050742,-450.0,0.00015479,2]
[361404962,1747557050751,-450.0,0.00015479,2]
[361404963,1747557050761,-678.63,0.00015479,2]
[361404964,1747557050770,-450.0,0.00015479,2]
[361404965,1747557050779,-450.0,0.00015479,2]
[361404966,1747557050788,-5000.0,0.00015595,2]
[361404967,1747557050796,-450.0,0.00015616,2]
[361404968,1747557050805,-563.78,0.00015616,2]
[361404969,1747557050815,-465.86,0.00015616,2]
[361404970,1747557050824,-199.09,0.00015616,2]
[361404971,1747557050833,-491.67,0.00015616,2]
[361404972,1747557050843,-678.63,0.00015616,2]
[361404973,1747557050852,-390.61,0.00015616,2]
[361404974,1747557050861,-450.0,0.00015616,2]
[361404975,1747557050870,-450.0,0.00015753,2]
[361404976,1747557050880,-563.78,0.00015753,2]
[361404977,1747557050889,-465.86,0.00015753,2]
[361404978,1747557050898,-678.63,0.00015753,2]
[361404979,1747557050908,-450.0,0.00015753,2]
[361404980,1747557050918,-642.18908998,0.00015797,2]
[361404981,1747557050928,-715.395,0.000158,2]
[361404982,1747557050943,-2265.806,0.000158,2]
[361404983,1747557050953,-404.0,0.000158,2]
[361404984,1747557050962,-212.94401233,0.00015886,2]
[361404985,1747557050973,-450.0,0.0001589,2]
[361404986,1747557050982,-563.78,0.0001589,2]
[361404987,1747557050992,-465.86,0.0001589,2]
[361404988,1747557051002,-678.63,0.0001589,2]
[361404989,1747557051012,-450.0,0.0001589,2]
[361404990,1747557051021,-450.0,0.00016027,2]
[361404991,1747557051031,-563.78,0.00016027,2]
[361404992,1747557051041,-465.86,0.00016027,2]
[361404993,1747557051051,-678.63,0.00016027,2]
[361404994,1747557051060,-523.9,0.00016027,2]
[361404995,1747557051070,-5000.0,0.00016143,2]
[361404997,1747557051079,-500.0,0.00016164,2]
[361404998,1747557051088,-500.0,0.00016164,2]
[361404999,1747557051097,-500.0,0.00016164,2]
[361405000,1747557051106,-500.0,0.00016164,2]
[361405002,1747557051115,-500.0,0.00016164,2]
[361405003,1747557051124,-500.0,0.00016164,2]
[361405005,1747557051133,-500.0,0.00016164,2]
[361405006,1747557051142,-500.0,0.00016164,2]
[361405007,1747557051151,-500.0,0.00016164,2]
[361405009,1747557051160,-500.0,0.00016164,2]
[361405011,1747557051169,-500.0,0.00016164,2]
[361405013,1747557051181,-500.0,0.00016164,2]
[361405015,1747557051192,-492.08824135,0.00016164,2]
[361405017,1747557051202,-600.0,0.00016164,2]
[361405019,1747557051213,-259.04762613,0.00016164,2]
[361405021,1747557051222,-450.0,0.00016164,2]
[361405023,1747557051231,-563.78,0.00016164,2]
[361405025,1747557051240,-465.86,0.00016164,2]
[361405027,1747557051251,-678.63,0.00016164,2]
[361405028,1747557051260,-642.18908998,0.00016176,2]
[361405030,1747557051270,-450.0,0.00016301,2]
[361405032,1747557051280,-563.78,0.00016301,2]
[361405034,1747557051290,-465.86,0.00016301,2]
[361405036,1747557051299,-678.63,0.00016301,2]
[361405038,1747557051308,-404.0,0.00016351,2]
[361405040,1747557051317,-450.0,0.00016438,2]
[361405042,1747557051326,-563.78,0.00016438,2]
[361405044,1747557051337,-465.86,0.00016438,2]
[361405046,1747557051346,-678.63,0.00016438,2]
[361405048,1747557051355,-196.0,0.000165,3]
[361405050,1747557051364,-642.18908998,0.00016555,2]
[361405052,1747557051373,-291.055,0.00016575,2]
[361405054,1747557051382,-560.96406068,0.00016575,2]
[361405056,1747557051392,-563.78,0.00016575,2]
[361405058,1747557051403,-465.86,0.00016575,2]
[361405060,1747557051412,-678.63,0.00016575,2]
[361405062,1747557051421,-5000.0,0.00016691,2]
[361405064,1747557051432,-563.78,0.00016712,2]
[361405066,1747557051442,-465.86,0.00016712,2]
[361405068,1747557051451,-678.63,0.00016712,2]
[361405070,1747557051460,-563.97,0.00016849,2]
[361405072,1747557051470,-465.94,0.00016849,2]
[361405074,1747557051478,-678.84,0.00016849,2]
[361405075,1747557051487,-642.18908998,0.00016934,2]
[361405078,1747557051496,-151.0,0.00017,2]
[361405079,1747557051507,-5000.0,0.00017239,2]
[361405082,1747557051517,-642.18908998,0.00017314,2]
[361405083,1747557051526,-151.0,0.000174,2]
[361405085,1747557051535,-212.94401233,0.00017652,2]
[361405087,1747557051545,-642.18908998,0.00017693,2]
[361405089,1747557051554,-5000.0,0.00017787,2]
[361405091,1747557051563,-160.8033442,0.00017807,2]
[361405093,1747557051572,-1500.0,0.00017808,7]
[361405095,1747557051581,-1500.0,0.00017808,7]
[361405097,1747557051590,-1500.0,0.00017808,7]
[361405099,1747557051599,-1500.0,0.00017808,7]
[361405101,1747557051608,-1500.0,0.00017808,7]
[361405103,1747557051617,-1500.0,0.00017808,7]
[361405105,1747557051626,-1500.0,0.00017808,7]
[361405107,1747557051635,-1500.0,0.00017808,7]
[361405109,1747557051644,-1500.0,0.00017808,7]
[361405111,1747557051654,-1500.0,0.00017808,7]
[361405113,1747557051663,-1500.0,0.00017808,7]
[361405115,1747557051672,-1500.0,0.00017808,7]
[361405117,1747557051682,-1500.0,0.00017808,7]
[361405119,1747557051691,-1500.0,0.00017808,7]
[361405121,1747557051701,-1500.0,0.00017808,7]
[361405123,1747557051710,-1500.0,0.00017808,7]
[361405125,1747557051718,-1500.0,0.00017808,7]
[361405127,1747557051727,-1500.0,0.00017808,7]
[361405129,1747557051737,-1500.0,0.00017808,7]
[361405131,1747557051747,-1500.0,0.00017808,7]
[361405133,1747557051756,-1500.0,0.00017808,7]
[361405134,1747557051765,-782.29795914,0.00017808,7]
[361405150,1747557052375,-500.0,0.00012853,2]
[361405151,1747557052385,-500.0,0.00012853,2]
[361405152,1747557052394,-500.0,0.00012853,2]
[361405153,1747557052403,-274.29447921,0.00012853,2]
[361405154,1747557052412,-500.0,0.00012853,2]
[361405155,1747557052421,-500.0,0.00012853,2]
[361405156,1747557052431,-500.0,0.00012853,2]
[361405157,1747557052447,-500.0,0.00012853,2]
[361405158,1747557052465,-312.47317177,0.00012853,2]
[361405159,1747557052478,-80428.31970993,0.00013561,2]
[361405206,1747557053122,-500.0,0.00012853,2]
[361405208,1747557053132,-500.0,0.00012853,2]
[361405210,1747557053141,-500.0,0.00012853,2]
[361405212,1747557053150,-500.0,0.00012853,2]
[361405214,1747557053159,-287.55662375,0.00012853,2]
[361405216,1747557053168,-500.0,0.00012853,2]
[361405218,1747557053178,-500.0,0.00012853,2]
[361405220,1747557053190,-500.0,0.00012853,2]
[361405222,1747557053199,-500.0,0.00012853,2]
[361405224,1747557053212,-500.0,0.00012853,2]
[361405227,1747557053222,-500.0,0.00012853,2]
[361405229,1747557053231,-500.0,0.00012853,2]
[361405231,1747557053240,-314.30022419,0.00012853,2]
[361405233,1747557053253,-185.69977581,0.00012853,2]
[361405255,1747557053518,-500.0,0.00012853,2]
[361405258,1747557053537,-500.0,0.00012853,2]
[361405261,1747557053549,-500.0,0.00012853,2]
[361405263,1747557053558,-500.0,0.00012853,2]
[361405265,1747557053567,-500.0,0.00012853,2]
[361405267,1747557053576,-500.0,0.00012853,2]
[361405269,1747557053585,-500.0,0.00012853,2]
[361405271,1747557053594,-500.0,0.00012853,2]
[361405273,1747557053603,-500.0,0.00012853,2]
[361405275,1747557053613,-500.0,0.00012853,2]
[361405277,1747557053622,-500.0,0.00012853,2]